bitfinex-derivatives/quotes_BTCF0:USTF0_20250810
["timestamp","ask_amount","ask_price","bid_price","bid_amount"]
[1754818471148,0.5618974,118340.0,118330.0,1.2439848]
[1754818471438,1.0714725,118340.0,118330.0,1.32001968]
[1754818471942,0.7106725,118340.0,118330.0,1.2439848]
[1754818472346,1.0714725,118340.0,118330.0,1.2439848]
[1754818473547,0.5618974,118340.0,118330.0,1.2439848]
[1754818473750,1.0714725,118340.0,118330.0,1.2439848]
[1754818477350,0.7106725,118340.0,118330.0,1.2439848]
[1754818477545,1.0714725,118340.0,118330.0,1.2439848]
[1754818477848,0.5618974,118340.0,118330.0,1.2439848]
[1754818478050,1.0714725,118340.0,118330.0,1.2439848]
[1754818478246,1.0480125,118340.0,118330.0,1.2439848]
[1754818479151,1.0480125,118340.0,118330.0,1.32001968]
[1754818480142,1.0480125,118340.0,118330.0,1.2439848]
[1754818481252,1.0480125,118340.0,118330.0,1.32001968]
[1754818482056,1.0480125,118340.0,118330.0,1.2439848]
[1754818482358,0.5384374,118340.0,118330.0,1.2439848]
[1754818482550,0.6027151,118340.0,118330.0,1.49877235]
[1754818482952,0.6027151,118340.0,118330.0,1.2439848]
[1754818483254,0.6027151,118340.0,118330.0,1.49877235]
[1754818485162,0.6027151,118340.0,118330.0,1.2439848]
[1754818485354,0.6872125,118340.0,118330.0,1.49877235]
[1754818488359,0.1776374,118340.0,118330.0,1.49877235]
[1754818488659,0.6872125,118340.0,118330.0,1.2439848]
[1754818489856,1.0480125,118340.0,118330.0,1.2439848]
[1754818490856,1.0708425,118340.0,118330.0,1.2439848]
[1754818491761,1.0708425,118340.0,118330.0,1.32001968]
[1754818491961,1.0708425,118340.0,118330.0,1.2439848]
[1754818492767,0.5612674,118340.0,118330.0,1.2439848]
[1754818492955,1.0708425,118340.0,118330.0,1.2439848]
[1754818496466,0.5612674,118340.0,118330.0,1.2439848]
[1754818496667,1.0708425,118340.0,118330.0,1.2439848]
[1754818501572,0.9635151,118340.0,118330.0,1.2439848]
[1754818501961,1.0480124,118340.0,118330.0,1.2439848]
[1754818502162,1.0480124,118340.0,118330.0,1.49877235]
[1754818503071,0.9635151,118340.0,118330.0,1.2439848]
[1754818503271,0.6027151,118340.0,118330.0,1.2439848]
[1754818503972,0.09314,118340.0,118330.0,1.2439848]
[1754818504274,0.6872125,118340.0,118330.0,1.2439848]
[1754818504572,0.6027151,118340.0,118330.0,1.2439848]
[1754818504972,0.09314,118340.0,118330.0,1.2439848]
[1754818505172,0.9635151,118340.0,118330.0,1.49877235]
[1754818506174,0.6027151,118340.0,118330.0,1.49877235]
[1754818506369,0.6027151,118340.0,118330.0,1.2439848]
[1754818506570,0.6027151,118340.0,118330.0,1.49877235]
[1754818506773,0.09314,118340.0,118330.0,1.49877235]
[1754818507462,0.3611,118350.0,118330.0,2.2833648]
[1754818507668,0.0001,118350.0,118340.0,0.78812728]
[1754818507872,0.38638,118360.0,118350.0,0.0844902]
[1754818508078,0.45434,118360.0,118350.0,1.26504798]
[1754818508278,0.70912755,118360.0,118350.0,1.0102147]
[1754818508478,0.34832755,118360.0,118350.0,1.26500225]
[1754818508679,0.6031151,118360.0,118350.0,1.26500225]
[1754818509084,0.6031151,118360.0,118350.0,1.0102147]
[1754818510787,0.6875981,118360.0,118350.0,1.0102147]
[1754818511389,0.7125581,118360.0,118350.0,1.0102147]
[1754818511989,0.7125581,118360.0,118350.0,1.07932481]
[1754818512292,0.7125581,118360.0,118350.0,1.10585481]
[1754818512492,1.0733581,118360.0,118350.0,1.10585481]
[1754818513289,1.0753581,118360.0,118350.0,1.10585481]
[1754818514788,1.0753581,118360.0,118350.0,0.33245481]
[1754818515492,1.0753581,118360.0,118350.0,0.27162031]
[1754818517097,1.0753581,118360.0,118350.0,0.54062031]
[1754818522897,1.0753581,118360.0,118350.0,0.60145481]
[1754818525997,1.0753581,118360.0,118350.0,0.54062031]
[1754818535207,0.565783,118360.0,118350.0,0.54062031]
[1754818535407,1.0753581,118360.0,118350.0,0.54062031]
[1754818535909,1.0753581,118360.0,118350.0,0.60145481]
[1754818538213,1.0753581,118360.0,118350.0,0.54062031]
[1754818538511,1.0743581,118360.0,118350.0,0.54062031]
[1754818538906,1.0733581,118360.0,118350.0,0.54062031]
[1754818539514,1.0743581,118360.0,118350.0,0.54062031]
[1754818540108,0.564783,118360.0,118350.0,0.54062031]
[1754818540313,1.0743581,118360.0,118350.0,0.54062031]
[1754818540614,1.0733581,118360.0,118350.0,0.54062031]
[1754818541213,0.563783,118360.0,118350.0,0.54062031]
[1754818541408,1.0733581,118360.0,118350.0,0.54062031]
[1754818542009,1.32814565,118360.0,118350.0,0.3534902]
[1754818542314,1.34673812,118360.0,118350.0,0.3534902]
[1754818542909,0.58237547,118360.0,118350.0,0.3534902]
[1754818543110,1.34773812,118360.0,118350.0,0.3534902]
[1754818543310,1.34873812,118360.0,118350.0,0.3534902]
[1754818543714,1.34773812,118360.0,118350.0,0.3534902]
[1754818543905,1.35073812,118360.0,118350.0,0.3534902]
[1754818546520,1.35073812,118360.0,118350.0,0.0844902]
[1754818551425,0.0844902,118350.0,118340.0,0.6070849]
[1754818551726,1.86868777,118350.0,118340.0,0.6313049]
[1754818552622,1.86968777,118350.0,118340.0,0.2778076]
[1754818553025,1.87068777,118350.0,118340.0,0.2778076]
[1754818553823,1.87168777,118350.0,118340.0,0.2778076]
[1754818555626,1.8530953,118350.0,118340.0,0.2778076]
[1754818556126,1.8520953,118350.0,118340.0,0.2778076]
[1754818559033,0.2030074,118340.0,118330.0,0.35396688]
[1754818559227,1.34497948,118340.0,118330.0,0.277832]
[1754818559634,1.35350387,118340.0,118330.0,0.277832]
[1754818559935,1.34497948,118340.0,118330.0,0.277832]
[1754818560129,1.09019193,118340.0,118330.0,0.277832]
[1754818561235,1.09883579,118340.0,118330.0,0.277832]
[1754818561637,1.35362334,118340.0,118330.0,0.277832]
[1754818561831,1.09019193,118340.0,118330.0,0.277832]
[1754818562337,1.09119193,118340.0,118330.0,0.277832]
[1754818562539,1.09219193,118340.0,118330.0,0.277832]
[1754818563238,1.09219193,118340.0,118330.0,0.293322]
[1754818563437,1.09219193,118340.0,118330.0,0.325492]
[1754818564938,1.09219193,118340.0,118330.0,0.347612]
[1754818576563,1.09219193,118340.0,118330.0,0.361992]
[1754818581471,1.09219193,118340.0,118330.0,0.253512]
[1754818581669,1.34697948,118340.0,118330.0,0.169008]
[1754818581967,0.1314145,118330.0,118320.0,0.53313499]
[1754818582165,1.8470496,118330.0,118320.0,0.18800011]
[1754818582763,1.8470496,118330.0,118320.0,0.21110011]
[1754818585574,1.865611,118330.0,118320.0,0.21110011]
[1754818586573,2.12039855,118330.0,118320.0,0.10349371]
[1754818586872,0.0845116,118320.0,118310.0,0.3381736]
[1754818587069,1.32788425,118320.0,118310.0,0.2535552]
[1754818587269,1.34473085,118320.0,118310.0,0.1690368]
[1754818587470,1.36328997,118320.0,118310.0,0.1690368]
[1754818587872,1.36328997,118320.0,118310.0,0.1700368]
[1754818588067,1.34473085,118320.0,118310.0,0.1700368]
[1754818588272,1.34473085,118320.0,118310.0,0.1710368]
[1754818588973,1.34473085,118320.0,118310.0,0.0865184]
[1754818589374,1.34473085,118320.0,118310.0,0.002]
[1754818589775,1.36328256,118320.0,118310.0,0.002]
[1754818590277,1.34473085,118320.0,118310.0,0.002]
[1754818590871,1.36327829,118320.0,118310.0,0.0865188]
[1754818591171,1.34473085,118320.0,118310.0,0.0865188]
[1754818592474,1.41272264,118320.0,118310.0,0.0865188]
[1754818593380,1.41272264,118320.0,118310.0,0.1096188]
[1754818593574,1.43126121,118320.0,118310.0,0.1096188]
[1754818595274,1.43126121,118320.0,118310.0,0.002]
[1754818595470,1.60030121,118320.0,118300.0,0.0001]
[1754818595674,2.10063145,118310.0,118300.0,0.0001]
[1754818595875,0.2018359,118300.0,118290.0,0.372637]
[1754818596079,1.072211,118300.0,118290.0,0.372537]
[1754818597080,1.072211,118300.0,118290.0,0.380537]
[1754818597882,1.32699855,118300.0,118290.0,0.380537]
[1754818598481,1.32699855,118300.0,118290.0,0.386537]
[1754818598681,0.90257916,118300.0,118290.0,0.386537]
[1754818599481,1.67601916,118300.0,118290.0,0.386537]
[1754818600082,1.67617916,118300.0,118290.0,0.386537]
[1754818600378,0.87798916,118300.0,118290.0,0.386537]
[1754818600582,0.79482916,118300.0,118290.0,0.386537]
[1754818601181,0.77749326,118300.0,118290.0,0.386537]
[1754818601373,0.86201936,118300.0,118290.0,0.386537]
[1754818601882,0.77749326,118300.0,118290.0,0.386537]
[1754818602084,0.73156326,118300.0,118290.0,0.386537]
[1754818602378,0.37036,118300.0,118290.0,0.386537]
[1754818602684,0.37066,118310.0,118300.0,0.2034661]
[1754818602883,0.454879,118310.0,118300.0,0.2034661]
[1754818603183,0.45352,118310.0,118300.0,0.2034661]
[1754818603372,0.79346326,118310.0,118300.0,0.2034661]
[1754818603580,0.87798216,118310.0,118300.0,0.2034661]
[1754818603781,0.87798216,118310.0,118300.0,0.26414344]
[1754818603983,0.87798216,118310.0,118300.0,0.26614344]
[1754818605684,0.87798216,118310.0,118300.0,0.53514344]
[1754818606086,0.87798216,118310.0,118300.0,0.4764661]
[1754818606281,0.90257216,118310.0,118300.0,0.4764661]
[1754818606680,1.67849216,118310.0,118300.0,0.4764661]
[1754818610488,1.338549,118310.0,118300.0,0.4764661]
[1754818610676,0.90257226,118310.0,118300.0,0.4764661]
[1754818610978,0.45352,118310.0,118300.0,0.4764661]
[1754818611184,0.79346326,118310.0,118300.0,0.53714344]
[1754818611487,0.87798226,118310.0,118300.0,0.53714344]
[1754818611787,0.90257226,118310.0,118300.0,0.4764661]
[1754818612187,0.562629,118310.0,118300.0,0.4764661]
[1754818612390,0.90257226,118310.0,118300.0,0.4764661]
[1754818612687,0.562629,118310.0,118300.0,0.4764661]
[1754818612877,0.90257226,118310.0,118300.0,0.4764661]
[1754818613992,0.81805326,118310.0,118300.0,0.4764661]
[1754818616795,0.47811,118310.0,118300.0,0.4764661]
[1754818617094,0.81805326,118310.0,118300.0,0.4764661]
[1754818619797,0.90257216,118310.0,118300.0,0.4764661]
[1754818621611,0.90257216,118310.0,118300.0,0.53714344]
[1754818622096,0.77749326,118310.0,118300.0,0.53714344]
[1754818622296,0.4238766,118320.0,118310.0,0.07229]
[1754818622508,0.81030986,118320.0,118310.0,0.4724589]
[1754818622807,0.4703666,118320.0,118310.0,0.54849378]
[1754818623106,0.4703666,118320.0,118310.0,0.3535189]
[1754818623107,0.91941166,118320.0,118310.0,0.3535189]
[1754818623302,0.91941166,118320.0,118310.0,0.4724589]
[1754818624106,0.91941166,118320.0,118310.0,0.53326964]
[1754818629712,0.5794684,118320.0,118310.0,0.53326964]
[1754818629912,0.91941166,118320.0,118310.0,0.53326964]
[1754818630610,1.0891465,118320.0,118310.0,0.53326964]
[1754818635617,1.0891465,118320.0,118310.0,0.4724589]
[1754818638326,1.0891465,118320.0,118310.0,0.3535189]
[1754818638518,1.41130133,118320.0,118310.0,0.3535189]
[1754818638819,1.41130133,118320.0,118310.0,0.269]
[1754818639220,1.41130133,118320.0,118310.0,0.353519]
[1754818639720,1.41130133,118320.0,118310.0,0.269]
[1754818640019,1.41130133,118320.0,118310.0,0.3535189]
[1754818640718,0.64678418,118320.0,118310.0,0.3535189]
[1754818640916,1.41130133,118320.0,118310.0,0.3535189]
[1754818642217,2.36331068,118320.0,118310.0,0.16424]
[1754818642416,1.59879353,118320.0,118310.0,0.13925]
[1754818642617,1.59879305,118320.0,118310.0,0.13925]
[1754818643521,1.59879305,118320.0,118310.0,0.2237689]
[1754818643725,1.42975305,118320.0,118310.0,0.2237689]
[1754818643914,1.42975305,118320.0,118310.0,0.13925]
[1754818644324,0.0845189,118310.0,118300.0,0.3630198]
[1754818644626,1.731477,118310.0,118300.0,0.3629198]
[1754818645124,1.731477,118310.0,118300.0,0.42373054]
[1754818645523,1.731477,118310.0,118300.0,0.42573054]
[1754818645726,1.731477,118310.0,118300.0,0.3649198]
[1754818646722,1.731477,118310.0,118300.0,0.0865261]
[1754818646927,1.98631605,118310.0,118300.0,0.1473694]
[1754818647131,1.731477,118310.0,118300.0,0.1721894]
[1754818647723,1.732077,118310.0,118300.0,0.1721894]
[1754818647920,1.2223989,118310.0,118300.0,0.1721894]
[1754818648219,1.732077,118310.0,118300.0,0.1721894]
[1754818648629,1.2223989,118310.0,118300.0,0.1721894]
[1754818648930,1.732077,118310.0,118300.0,0.1721894]
[1754818649125,1.2223989,118310.0,118300.0,0.1721894]
[1754818649332,1.732077,118310.0,118300.0,0.1113461]
[1754818649832,1.732077,118310.0,118300.0,0.1721815]
[1754818654531,1.2223989,118310.0,118300.0,0.1721815]
[1754818654736,1.732077,118310.0,118300.0,0.1721815]
[1754818655833,1.732077,118310.0,118300.0,0.2500715]
[1754818656034,1.2223989,118310.0,118300.0,0.2649615]
[1754818656234,1.732077,118310.0,118300.0,0.2649615]
[1754818656634,1.732077,118310.0,118300.0,0.2500715]
[1754818656935,1.732077,118310.0,118300.0,0.2182715]
[1754818657530,1.732077,118310.0,118300.0,0.1721815]
[1754818659439,1.2223989,118310.0,118300.0,0.1721815]
[1754818659640,1.732077,118310.0,118300.0,0.2644815]
[1754818662333,1.732077,118310.0,118300.0,0.2495915]
[1754818662733,1.732077,118310.0,118300.0,0.1569561]
[1754818664239,1.732077,118310.0,118300.0,0.1357361]
[1754818664439,1.732077,118310.0,118300.0,0.1113461]
[1754818672540,1.732077,118310.0,118300.0,0.2283715]
[1754818673249,1.732077,118310.0,118300.0,0.2432615]
[1754818673739,1.732077,118310.0,118300.0,0.2644815]
[1754818675744,1.7505306,118310.0,118300.0,0.2036461]
[1754818678458,0.9734506,118310.0,118300.0,0.2036461]
[1754818678650,1.733077,118310.0,118300.0,0.2036461]
[1754818678850,1.75153227,118310.0,118300.0,0.2036461]
[1754818681552,0.63409432,118310.0,118300.0,0.2036461]
[1754818681757,1.47807795,118310.0,118300.0,0.2036461]
[1754818682153,0.70015795,118310.0,118300.0,0.2036461]
[1754818682358,0.61563905,118310.0,118300.0,0.2036461]
[1754818682656,0.25483905,118310.0,118300.0,0.2036461]
[1754818682854,1.56112708,118320.0,118310.0,0.07145]
[1754818683062,2.004443,118320.0,118310.0,0.2015789]
[1754818685157,2.34380095,118320.0,118310.0,0.0845189]
[1754818685361,0.0845189,118310.0,118300.0,0.3616497]
[1754818685559,1.17647235,118310.0,118300.0,0.4223851]
[1754818685758,1.17647235,118310.0,118300.0,0.337859]
[1754818687260,1.17647235,118310.0,118300.0,0.338859]
[1754818687655,1.17647235,118310.0,118300.0,0.339859]
[1754818688862,1.00672462,118310.0,118300.0,0.2790236]
[1754818690760,1.00672462,118310.0,118300.0,0.1944975]
[1754818691458,1.00672462,118310.0,118300.0,0.1099714]
[1754818693965,1.00672462,118310.0,118300.0,0.02545]
[1754818695166,1.00672462,118310.0,118300.0,0.109976]
[1754818695562,1.00672462,118310.0,118300.0,0.1708114]
[1754818696069,1.00672462,118310.0,118300.0,0.0862854]
[1754818699067,1.00672462,118310.0,118300.0,0.0628354]
[1754818700771,1.00672462,118310.0,118300.0,0.0862854]
[1754818703476,1.00672462,118310.0,118300.0,0.1708114]
[1754818703967,1.00672462,118310.0,118300.0,0.0862854]
[1754818704675,1.00672462,118310.0,118300.0,0.0628354]
[1754818705172,1.00672462,118310.0,118300.0,0.0862854]
[1754818708670,1.43168709,118310.0,118300.0,0.0862854]
[1754818708870,1.44908464,118310.0,118300.0,0.0862854]
[1754818710685,1.44908464,118310.0,118300.0,0.02545]
[1754818711583,1.44908464,118310.0,118300.0,0.002]
[1754818711786,0.084526,118300.0,118290.0,0.0609354]
[1754818712088,0.0845332,118290.0,118280.0,0.02355]
[1754818712290,0.97223941,118290.0,118280.0,0.1080903]
[1754818712489,0.97223941,118290.0,118280.0,0.09803]
[1754818712885,0.97223941,118290.0,118280.0,0.04861]
[1754818713284,0.97223941,118290.0,118280.0,0.05561]
[1754818713683,0.97223941,118290.0,118280.0,0.1401503]
[1754818714789,0.98072825,118290.0,118280.0,0.1451503]
[1754818715188,0.98072825,118290.0,118280.0,0.06061]
[1754818716494,0.98072825,118290.0,118280.0,0.03555]
[1754818723595,0.98072825,118290.0,118280.0,0.0121]
[1754818723789,0.98072825,118290.0,118280.0,0.0351]
[1754818726390,1.23569253,118290.0,118280.0,0.0121]
[1754818726597,1.25436427,118290.0,118280.0,0.0121]
[1754818726789,0.0845403,118280.0,118270.0,0.0231]
[1754818726989,1.98755314,118280.0,118270.0,0.023]
[1754818729392,1.98855314,118280.0,118270.0,0.023]
[1754818730295,0.0845475,118270.0,118260.0,0.0231]
[1754818730495,0.0845546,118260.0,118250.0,0.2537839]
[1754818730706,1.98720744,118260.0,118250.0,0.3703939]
[1754818731201,1.98720744,118260.0,118250.0,0.3246639]
[1754818731405,1.98720744,118260.0,118250.0,0.3703939]
[1754818731707,2.05612664,118260.0,118250.0,0.3703939]
[1754818731891,2.05712664,118260.0,118250.0,0.3803939]
[1754818732298,2.05712664,118260.0,118250.0,0.12671]
[1754818732594,2.05612664,118260.0,118250.0,0.12071]
[1754818733096,2.05612664,118260.0,118250.0,0.2052718]
[1754818733699,2.05612664,118260.0,118250.0,0.004]
[1754818733903,2.05612664,118260.0,118250.0,0.027]
[1754818734302,2.05712664,118260.0,118250.0,0.023]
[1754818735100,1.2922338,118260.0,118250.0,0.1075617]
[1754818735290,2.05712664,118260.0,118250.0,0.1075617]
[1754818735496,2.05812664,118260.0,118250.0,0.1075617]
[1754818736194,2.05912664,118260.0,118250.0,0.1075617]
[1754818737095,2.05912664,118260.0,118250.0,0.1786917]
[1754818737301,2.05912664,118260.0,118250.0,0.2012717]
[1754818738403,1.2939538,118260.0,118250.0,0.2012717]
[1754818738604,1.80388236,118260.0,118250.0,0.2012717]
[1754818739604,2.05884664,118260.0,118250.0,0.11671]
[1754818740707,2.05884664,118260.0,118250.0,0.1873317]
[1754818740903,2.05884664,118260.0,118250.0,0.1075617]
[1754818741705,2.05884664,118260.0,118250.0,0.023]
[1754818748218,2.05884664,118260.0,118250.0,0.1878017]
[1754818748420,2.05884664,118260.0,118250.0,0.2014917]
[1754818752320,2.05884664,118260.0,118250.0,0.11693]
[1754818753230,2.05884664,118260.0,118250.0,0.023]
[1754818754618,0.0845618,118250.0,118240.0,0.2850536]
[1754818754922,0.97419885,118250.0,118240.0,0.2849536]
[1754818756019,0.97519885,118250.0,118240.0,0.2849536]
[1754818757118,0.97519885,118250.0,118240.0,0.1918736]
[1754818757313,0.98372337,118250.0,118240.0,0.1918736]
[1754818757518,0.98372337,118250.0,118240.0,0.2490036]
[1754818757718,0.98372337,118250.0,118240.0,0.2626936]
[1754818757918,0.98372337,118250.0,118240.0,0.2849536]
[1754818758217,0.97519885,118250.0,118240.0,0.2003858]
[1754818758410,0.97519885,118250.0,118240.0,0.02274]
[1754818758811,0.97519885,118250.0,118240.0,0.1073089]
[1754818759224,0.97519885,118250.0,118240.0,0.1395089]
[1754818759419,0.97519885,118250.0,118240.0,0.1644389]
[1754818759619,0.97519885,118250.0,118240.0,0.1781289]
[1754818759823,0.97519885,118250.0,118240.0,0.2003889]
[1754818760426,1.23016313,118250.0,118240.0,0.2003889]
[1754818760613,0.97519885,118250.0,118240.0,0.2003889]
[1754818761726,0.98378019,118250.0,118240.0,0.2003889]
[1754818761925,1.23874447,118250.0,118240.0,0.2003889]
[1754818762325,0.98378019,118250.0,118240.0,0.2003889]
[1754818767529,1.23874447,118250.0,118240.0,0.1544989]
[1754818767927,0.98378019,118250.0,118240.0,0.1544989]
[1754818768127,0.98378019,118250.0,118240.0,0.06993]
[1754818768427,0.0845689,118240.0,118230.0,0.20888167]
[1754818768622,1.98642174,118240.0,118230.0,0.26591167]
[1754818768824,1.98642174,118240.0,118230.0,0.30186167]
[1754818769627,1.73145746,118240.0,118230.0,0.30186167]
[1754818769831,1.73145746,118240.0,118230.0,0.30686167]
[1754818770232,1.2215289,118240.0,118230.0,0.31086167]
[1754818770432,1.73145746,118240.0,118230.0,0.31086167]
[1754818771634,1.2215289,118240.0,118230.0,0.31086167]
[1754818771934,1.73145746,118240.0,118230.0,0.31086167]
[1754818772139,1.98642174,118240.0,118230.0,0.31086167]
[1754818775835,1.98642174,118240.0,118230.0,0.38689655]
[1754818776337,1.73145746,118240.0,118230.0,0.38689655]
[1754818776636,1.2215289,118240.0,118230.0,0.38689655]
[1754818776837,1.73145746,118240.0,118230.0,0.38689655]
[1754818777136,0.95529746,118240.0,118230.0,0.38689655]
[1754818778432,0.4453689,118240.0,118230.0,0.38689655]
[1754818778632,0.95529746,118240.0,118230.0,0.38689655]
[1754818779136,0.4453689,118240.0,118230.0,0.38689655]
[1754818779338,1.21026174,118240.0,118230.0,0.38689655]
[1754818787960,1.21026174,118240.0,118230.0,0.31086167]
[1754818788151,0.95529746,118240.0,118230.0,0.31086167]
[1754818788448,0.63370349,118250.0,118240.0,0.0845689]
[1754818788652,0.80379987,118250.0,118240.0,0.28002431]
[1754818789050,1.05876415,118250.0,118240.0,0.28002431]
[1754818795958,1.05876415,118250.0,118240.0,0.2038789]
[1754818799464,1.05876415,118250.0,118240.0,0.28002431]
[1754818805668,1.05876415,118250.0,118240.0,0.2038789]
[1754818815277,0.54883559,118250.0,118240.0,0.2038789]
[1754818815470,1.83528415,118250.0,118240.0,0.2038789]
[1754818817668,1.83528415,118250.0,118240.0,0.1562489]
[1754818818078,1.83528415,118250.0,118240.0,0.1339189]
[1754818825686,1.41956415,118250.0,118240.0,0.1339189]
[1754818825884,2.19532415,118250.0,118240.0,0.1339189]
[1754818828882,2.19532415,118250.0,118240.0,0.04935]
[1754818833589,2.61942453,118250.0,118230.0,0.11634528]
[1754818833788,1.21026174,118240.0,118230.0,0.11634528]
[1754818834094,1.21026174,118240.0,118230.0,0.11624528]
[1754818834490,1.21885358,118240.0,118230.0,0.11624528]
[1754818834689,1.21885358,118240.0,118230.0,0.11924528]
[1754818834889,1.21026174,118240.0,118230.0,0.20382128]
[1754818836490,1.21026174,118240.0,118230.0,0.20882128]
[1754818836693,1.21026174,118240.0,118230.0,0.20582128]
[1754818836894,1.21026174,118240.0,118230.0,0.20982128]
[1754818837690,1.21026174,118240.0,118230.0,0.13367587]
[1754818838094,1.21026174,118240.0,118230.0,0.20982128]
[1754818839397,1.21026174,118240.0,118230.0,0.24240128]
[1754818839696,1.21026174,118240.0,118230.0,0.16625587]
[1754818840288,1.21026174,118240.0,118230.0,0.24240128]
[1754818841599,1.21026174,118240.0,118230.0,0.28114128]
[1754818841796,1.21026174,118240.0,118230.0,0.30305128]
[1754818841990,1.21026174,118240.0,118230.0,0.22690587]
[1754818845300,1.21026174,118240.0,118230.0,0.30305128]
[1754818845597,1.21026174,118240.0,118230.0,0.22690587]
[1754818851400,1.21026174,118240.0,118230.0,0.210016]
[1754818853905,1.21026174,118240.0,118230.0,0.28616141]
[1754818854605,0.4453689,118240.0,118230.0,0.28616141]
[1754818854798,1.98554174,118240.0,118230.0,0.28616141]
[1754818855904,1.98554174,118240.0,118230.0,0.210016]
[1754818858104,1.73057746,118240.0,118230.0,0.210016]
[1754818858305,1.98554174,118240.0,118230.0,0.116786]
[1754818859303,1.98554174,118240.0,118230.0,0.149366]
[1754818861201,1.98554174,118240.0,118230.0,0.173836]
[1754818861410,1.98554174,118240.0,118230.0,0.188106]
[1754818861911,1.73057746,118240.0,118230.0,0.210016]
[1754818862505,0.25496428,118240.0,118230.0,0.72026368]
[1754818862698,0.63370669,118250.0,118240.0,0.2025688]
[1754818862900,0.90704221,118250.0,118240.0,0.2025688]
[1754818863102,0.65207793,118250.0,118240.0,0.2025688]
[1754818863897,1.16200649,118250.0,118240.0,0.2025688]
[1754818864199,1.07743829,118250.0,118240.0,0.2025688]
[1754818864398,1.08243829,118250.0,118240.0,0.2025688]
[1754818864597,0.3658,118250.0,118240.0,0.45753308]
[1754818864804,0.25996428,118250.0,118240.0,0.4747009]
[1754818865810,0.25896428,118250.0,118240.0,0.4747009]
[1754818866017,0.25796428,118250.0,118240.0,0.4747009]
[1754818867010,0.25796428,118250.0,118240.0,0.7437009]
[1754818867212,0.25796428,118250.0,118240.0,0.81984631]
[1754818867810,0.003,118250.0,118240.0,1.90475459]
[1754818868507,0.002,118250.0,118240.0,1.90475459]
[1754818868708,1e-07,118250.0,118240.0,1.90475459]
[1754818868908,0.25526428,118260.0,118250.0,0.1312317]
[1754818869110,0.0003,118270.0,118260.0,0.1797246]
[1754818869317,0.25496428,118270.0,118260.0,0.46309007]
[1754818869613,0.25496428,118270.0,118260.0,0.71805435]
[1754818869814,0.25496428,118270.0,118260.0,0.38707434]
[1754818870405,0.25496428,118270.0,118260.0,0.64203862]
[1754818870602,0.25496428,118270.0,118260.0,0.71805435]
[1754818870806,0.25696428,118270.0,118260.0,0.71805435]
[1754818871311,0.25796428,118270.0,118260.0,0.71805435]
[1754818871620,0.25796428,118270.0,118260.0,0.64203862]
[1754818872016,0.25796428,118270.0,118260.0,0.91103862]
[1754818874620,0.25796428,118270.0,118260.0,0.65607434]
[1754818876118,0.003,118270.0,118260.0,0.65607434]
[1754818876416,0.25796428,118270.0,118260.0,0.65607434]
[1754818877019,0.25796428,118270.0,118260.0,1.27183862]
[1754818877526,0.25796428,118270.0,118260.0,1.00283862]
[1754818878012,0.25796428,118270.0,118260.0,0.74787434]
[1754818879721,0.25796428,118270.0,118260.0,0.38707434]
[1754818881717,0.34251168,118270.0,118260.0,0.38707434]
[1754818884326,0.25796428,118270.0,118260.0,0.38707434]
[1754818884726,0.25796428,118270.0,118260.0,0.64203862]
[1754818885628,0.003,118270.0,118260.0,0.64203862]
[1754818885821,0.25796428,118270.0,118260.0,0.64203862]
[1754818886830,0.25796428,118270.0,118260.0,0.91103862]
[1754818887328,0.25796428,118270.0,118260.0,0.65607434]
[1754818887628,0.25796428,118270.0,118260.0,0.91103862]
[1754818891634,0.34251168,118270.0,118260.0,0.65607434]
[1754818893839,0.25796428,118270.0,118260.0,0.65607434]
[1754818894628,0.25796428,118270.0,118260.0,0.73209007]
[1754818894629,0.003,118270.0,118260.0,0.73209007]
[1754818894830,0.25796428,118270.0,118260.0,0.73209007]
[1754818895134,0.61876428,118270.0,118260.0,0.73209007]
[1754818895332,0.51292856,118270.0,118260.0,0.73209007]
[1754818895534,0.51292856,118270.0,118260.0,0.65607434]
[1754818896342,0.87372856,118270.0,118260.0,0.65607434]
[1754818896633,0.87372856,118270.0,118260.0,0.73209007]
[1754818897232,0.51292856,118270.0,118260.0,0.73209007]
[1754818897832,0.87372856,118270.0,118260.0,0.73209007]
[1754818898032,0.51292856,118270.0,118260.0,0.73209007]
[1754818898234,0.87372856,118270.0,118260.0,0.73209007]
[1754818898432,0.51292856,118270.0,118260.0,0.73209007]
[1754818898636,0.61876428,118270.0,118260.0,0.73209007]
[1754818899636,0.25796428,118270.0,118260.0,0.73209007]
[1754818900134,0.51292856,118270.0,118260.0,0.73209007]
[1754818900535,0.87372856,118270.0,118260.0,0.73209007]
[1754818900734,0.51292856,118270.0,118260.0,0.73209007]
[1754818901139,0.61876428,118270.0,118260.0,0.73209007]
[1754818903745,0.25796428,118270.0,118260.0,0.73209007]
[1754818903935,0.61876428,118270.0,118260.0,0.73209007]
[1754818904249,0.25796428,118270.0,118260.0,0.73209007]
[1754818904640,0.25796428,118270.0,118260.0,0.98705435]
[1754818905338,0.003,118270.0,118260.0,0.98705435]
[1754818905531,0.25796428,118270.0,118260.0,0.98705435]
[1754818905735,0.25796428,118270.0,118260.0,0.91103862]
[1754818906545,0.003,118270.0,118260.0,0.91103862]
[1754818906746,0.003,118270.0,118260.0,1.5268029]
[1754818907836,0.25796428,118270.0,118260.0,1.5268029]
[1754818908740,0.003,118270.0,118260.0,1.5268029]
[1754818908945,0.25796428,118270.0,118260.0,1.5268029]
[1754818909451,0.003,118270.0,118260.0,1.5268029]
[1754818909953,0.003,118270.0,118260.0,1.60281863]
[1754818910343,0.003,118270.0,118260.0,1.67131836]
[1754818910748,0.25796428,118270.0,118260.0,1.67131836]
[1754818911850,0.25796428,118270.0,118260.0,1.59530263]
[1754818912648,0.25796428,118270.0,118260.0,1.34033835]
[1754818913752,0.003,118270.0,118260.0,1.34033835]
[1754818913952,0.25796428,118270.0,118260.0,1.34033835]
[1754818916149,0.25796428,118270.0,118260.0,1.59530263]
[1754818916656,0.003,118270.0,118260.0,1.59530263]
[1754818916850,0.25796428,118270.0,118260.0,1.34033835]
[1754818921958,0.25796428,118270.0,118260.0,1.44630026]
[1754818922349,0.25796428,118270.0,118260.0,1.41643483]
[1754818922656,0.003,118270.0,118260.0,1.41643483]
[1754818922859,0.25796428,118270.0,118260.0,1.41643483]
[1754818927759,0.003,118270.0,118260.0,1.67139911]
[1754818928057,0.25796428,118270.0,118260.0,1.59530263]
[1754818928560,0.25796428,118270.0,118260.0,1.34033835]
[1754818929557,0.25796428,118270.0,118260.0,1.08537407]
[1754818929759,0.25796428,118270.0,118260.0,1.34033835]
[1754818931260,0.25796428,118270.0,118260.0,1.59530263]
[1754818932353,0.25796428,118270.0,118260.0,1.70126454]
[1754818933061,0.003,118270.0,118260.0,1.70126454]
[1754818933358,0.25796428,118270.0,118260.0,1.70126454]
[1754818935657,0.01900618,118280.0,118260.0,1.70126454]
[1754818935855,0.0048,118310.0,118300.0,0.1904358]
[1754818936161,0.25976428,118310.0,118300.0,1.31322047]